[Event "*** Titled Tuesday Blitz"]
[Site "Chess.com"]
[Date "2021.02.02"]
[Round "3"]
[White "francyIM"]
[Black "anon219"]
[Result "0-1"]
[WhiteElo "2657"]
[BlackElo "2909"]
[TimeControl "180+1"]
[EndTime "10:31:10 PST"]
[Termination "anon219 won by resignation"]

1. d4 {[%clk 0:02:29.8]} 1... Nf6 {[%clk 0:02:59]} 2. Nc3 {[%clk 0:02:28]} 2...
d5 {[%clk 0:02:54.7]} 3. Bf4 {[%clk 0:02:27.8]} 3... a6 {[%clk 0:02:49.6]} 4. e3
{[%clk 0:02:23.7]} 4... c5 {[%clk 0:02:48.2]} 5. dxc5 {[%clk 0:02:20.4]} 5...
Nc6 {[%clk 0:02:48]} 6. Nf3 {[%clk 0:02:18.9]} 6... e6 {[%clk 0:02:47.5]} 7. Na4
{[%clk 0:02:18.7]} 7... Bxc5 {[%clk 0:02:43.1]} 8. Nxc5 {[%clk 0:02:18]} 8...
Qa5+ {[%clk 0:02:43.3]} 9. c3 {[%clk 0:02:16.8]} 9... Qxc5 {[%clk 0:02:43.5]}
10. Ne5 {[%clk 0:02:15]} 10... O-O {[%clk 0:02:40.6]} 11. Bd3 {[%clk 0:02:13.3]}
11... Nd7 {[%clk 0:02:38.1]} 12. Nxd7 {[%clk 0:02:07.7]} 12... Bxd7 {[%clk
0:02:37.9]} 13. Bg3 {[%clk 0:02:05.6]} 13... e5 {[%clk 0:02:35.2]} 14. e4 {[%clk
0:02:01.5]} 14... Be6 {[%clk 0:02:31.7]} 15. O-O {[%clk 0:01:56.2]} 15... Rad8
{[%clk 0:02:28.5]} 16. Qc2 {[%clk 0:01:49.1]} 16... d4 {[%clk 0:02:26.7]} 17.
cxd4 {[%clk 0:01:44.5]} 17... Qxd4 {[%clk 0:02:08.7]} 18. Be2 {[%clk 0:01:41.2]}
18... Qd2 {[%clk 0:02:08.7]} 19. Bd1 {[%clk 0:01:24.8]} 19... Qxc2 {[%clk
0:02:08.2]} 20. Bxc2 {[%clk 0:01:25.7]} 20... Rd2 {[%clk 0:02:08.8]} 21. Rfc1
{[%clk 0:01:22.8]} 21... f6 {[%clk 0:02:00.8]} 22. b3 {[%clk 0:01:08.5]} 22...
Rfd8 {[%clk 0:01:50.7]} 23. f3 {[%clk 0:00:56.3]} 23... Nb4 {[%clk 0:01:47.6]}
24. Bd1 {[%clk 0:00:46.1]} 24... Nxa2 {[%clk 0:01:45.9]} 25. Be1 {[%clk
0:00:45.6]} 25... Nxc1 {[%clk 0:01:06.5]} 26. Bxd2 {[%clk 0:00:33]} 26... Rxd2
{[%clk 0:01:07.4]} 27. Rxc1 {[%clk 0:00:31.4]} 27... a5 {[%clk 0:01:08.1]} 28.
Kf1 {[%clk 0:00:29.4]} 28... h5 {[%clk 0:01:03.7]} 29. h4 {[%clk 0:00:27]} 29...
Kh7 {[%clk 0:01:02.1]} 30. g4 {[%clk 0:00:22.9]} 30... Kg6 {[%clk 0:00:58.4]}
31. Ke1 {[%clk 0:00:20.3]} 31... Rh2 {[%clk 0:00:58.1]} 32. gxh5+ {[%clk
0:00:18.6]} 32... Kxh5 {[%clk 0:00:58.1]} 33. f4+ {[%clk 0:00:19.1]} 33... Bg4
{[%clk 0:00:57.6]} 34. Bxg4+ {[%clk 0:00:14.9]} 34... Kxg4 {[%clk 0:00:58.3]}
35. Rc7 {[%clk 0:00:15.6]} 35... Kxf4 {[%clk 0:00:57.5]} 36. Rxg7 {[%clk
0:00:15.4]} 36... Ke3 {[%clk 0:00:54.4]} 37. Kf1 {[%clk 0:00:11.8]} 37... Rh1+
{[%clk 0:00:50.9]} 38. Kg2 {[%clk 0:00:11.6]} 38... Rxh4 {[%clk 0:00:51.8]} 39.
Rxb7 {[%clk 0:00:11.4]} 39... Rxe4 {[%clk 0:00:52.1]} 40. Rb5 {[%clk 0:00:10.8]}
40... Rg4+ {[%clk 0:00:52]} 41. Kh3 {[%clk 0:00:09.7]} 41... Rb4 {[%clk
0:00:52.4]} 42. Rxa5 {[%clk 0:00:10.2]} 42... Rxb3 {[%clk 0:00:52.9]} 43. Ra6
{[%clk 0:00:10.8]} 43... f5 {[%clk 0:00:52.9]} 44. Ra5 {[%clk 0:00:11]} 44...
Kf4+ {[%clk 0:00:52.8]} 45. Kh4 {[%clk 0:00:11]} 45... e4 {[%clk 0:00:52.7]} 46.
Ra1 {[%clk 0:00:10]} 46... Rf3 {[%clk 0:00:52.7]} 47. Rf1 {[%clk 0:00:10.9]}
47... Rxf1 {[%clk 0:00:52.4]} 0-1

[Event "*** Titled Tuesday Blitz"]
[Site "Chess.com"]
[Date "2021.02.02"]
[Round "3"]
[White "Frolyanov_D"]
[Black "DenLaz"]
[Result "0-1"]
[WhiteElo "2612"]
[BlackElo "2840"]
[TimeControl "180+1"]
[EndTime "10:31:10 PST"]
[Termination "DenLaz won by resignation"]

1. d4 {[%clk 0:03:00.8]} 1... d5 {[%clk 0:02:59.5]} 2. c4 {[%clk 0:02:58.9]}
2... c6 {[%clk 0:02:59.7]} 3. Nf3 {[%clk 0:02:58.2]} 3... Nf6 {[%clk 0:02:59.4]}
4. Nc3 {[%clk 0:02:58.6]} 4... dxc4 {[%clk 0:02:59]} 5. a4 {[%clk 0:02:55.3]}
5... Bf5 {[%clk 0:02:58.7]} 6. Ne5 {[%clk 0:02:53.9]} 6... Nbd7 {[%clk
0:02:58.3]} 7. Nxc4 {[%clk 0:02:53.5]} 7... Nb6 {[%clk 0:02:58.7]} 8. Ne5 {[%clk
0:02:49.4]} 8... a5 {[%clk 0:02:58.3]} 9. f3 {[%clk 0:02:46.6]} 9... Nfd7 {[%clk
0:02:57.5]} 10. e4 {[%clk 0:02:44.8]} 10... Nxe5 {[%clk 0:02:57.4]} 11. exf5
{[%clk 0:02:44.5]} 11... Ned7 {[%clk 0:02:57]} 12. Bd3 {[%clk 0:02:27.7]} 12...
g6 {[%clk 0:02:42.1]} 13. O-O {[%clk 0:02:23.5]} 13... Bg7 {[%clk 0:02:41.2]}
14. Be3 {[%clk 0:02:21.8]} 14... Nf6 {[%clk 0:02:30.2]} 15. Bf2 {[%clk
0:02:20.6]} 15... Nbd5 {[%clk 0:02:23.1]} 16. Qb3 {[%clk 0:02:14.3]} 16... Qb6
{[%clk 0:02:15]} 17. Qxb6 {[%clk 0:01:58.2]} 17... Nxb6 {[%clk 0:02:15.9]} 18.
fxg6 {[%clk 0:01:57.7]} 18... hxg6 {[%clk 0:02:15]} 19. Ne4 {[%clk 0:01:57.8]}
19... Nbd5 {[%clk 0:02:10.6]} 20. Rac1 {[%clk 0:01:52.5]} 20... O-O-O {[%clk
0:01:59.6]} 21. Rfe1 {[%clk 0:01:50.2]} 21... e6 {[%clk 0:01:56.7]} 22. Nc5
{[%clk 0:01:34.8]} 22... Nd7 {[%clk 0:01:45.3]} 23. Nb3 {[%clk 0:01:33.4]} 23...
N7b6 {[%clk 0:01:36.7]} 24. Nxa5 {[%clk 0:01:31.7]} 24... Nxa4 {[%clk
0:01:36.1]} 25. Nc4 {[%clk 0:01:28.9]} 25... Nb4 {[%clk 0:01:30.8]} 26. Be4
{[%clk 0:01:13.5]} 26... Bxd4 {[%clk 0:00:49.1]} 27. b3 {[%clk 0:01:12.9]} 27...
Bxf2+ {[%clk 0:00:37.1]} 28. Kxf2 {[%clk 0:01:13.8]} 28... Nc5 {[%clk
0:00:37.8]} 29. Kg3 {[%clk 0:00:35.5]} 29... Ncd3 {[%clk 0:00:34.3]} 30. Bxd3
{[%clk 0:00:35.5]} 30... Nxd3 {[%clk 0:00:35.2]} 31. Ne5 {[%clk 0:00:34.5]}
31... Nxc1 {[%clk 0:00:31]} 32. Nxf7 {[%clk 0:00:34.1]} 32... Nxb3 {[%clk
0:00:27.8]} 33. Nxh8 {[%clk 0:00:29.8]} 33... Rxh8 {[%clk 0:00:27.4]} 34. Rxe6
{[%clk 0:00:30.3]} 34... Rg8 {[%clk 0:00:25.5]} 35. h4 {[%clk 0:00:29]} 35...
Nd4 {[%clk 0:00:25.2]} 36. Re4 {[%clk 0:00:24.3]} 36... Nf5+ {[%clk 0:00:24.6]}
37. Kg4 {[%clk 0:00:24.3]} 37... b5 {[%clk 0:00:24.9]} 38. h5 {[%clk 0:00:24.3]}
38... Nd6 {[%clk 0:00:23]} 39. Re6 {[%clk 0:00:15.7]} 39... gxh5+ {[%clk
0:00:23.2]} 0-1

[Event "*** Titled Tuesday Blitz"]
[Site "Chess.com"]
[Date "2021.02.02"]
[Round "3"]
[White "Sofiia_Hryzlova"]
[Black "anon102030"]
[Result "0-1"]
[WhiteElo "2244"]
[BlackElo "2732"]
[TimeControl "180+1"]
[EndTime "10:31:10 PST"]
[Termination "anon102030 won by resignation"]

1. c4 {[%clk 0:03:00.9]} 1... e5 {[%clk 0:02:51.2]} 2. g3 {[%clk 0:02:57.7]}
2... Nc6 {[%clk 0:02:50.9]} 3. Bg2 {[%clk 0:02:57.6]} 3... g6 {[%clk 0:02:49.6]}
4. Nc3 {[%clk 0:02:57.1]} 4... Bg7 {[%clk 0:02:49.5]} 5. e3 {[%clk 0:02:56.3]}
5... d6 {[%clk 0:02:48.2]} 6. Nge2 {[%clk 0:02:55.4]} 6... Be6 {[%clk
0:02:46.5]} 7. d3 {[%clk 0:02:53.8]} 7... h6 {[%clk 0:02:41.2]} 8. a3 {[%clk
0:02:50.8]} 8... Nge7 {[%clk 0:02:40.5]} 9. b4 {[%clk 0:02:48.8]} 9... d5 {[%clk
0:02:39.2]} 10. b5 {[%clk 0:02:43.8]} 10... Na5 {[%clk 0:02:27.8]} 11. Qa4
{[%clk 0:02:33.1]} 11... b6 {[%clk 0:02:22.2]} 12. c5 {[%clk 0:02:23]} 12... Nb7
{[%clk 0:02:13.3]} 13. c6 {[%clk 0:02:12]} 13... Nc5 {[%clk 0:02:11.9]} 14. Qc2
{[%clk 0:02:06.4]} 14... d4 {[%clk 0:02:10.9]} 15. exd4 {[%clk 0:01:59.1]} 15...
exd4 {[%clk 0:02:09]} 16. Ne4 {[%clk 0:01:50.6]} 16... Bd5 {[%clk 0:01:45]} 17.
f3 {[%clk 0:01:32.8]} 17... Nb3 {[%clk 0:01:34.3]} 18. Rb1 {[%clk 0:01:31.2]}
18... Nxc1 {[%clk 0:01:34.6]} 19. Qxc1 {[%clk 0:01:25.6]} 19... O-O {[%clk
0:01:29.9]} 20. O-O {[%clk 0:01:24.4]} 20... Re8 {[%clk 0:01:25.9]} 21. Nf4
{[%clk 0:01:19.8]} 21... f5 {[%clk 0:01:04.9]} 22. Nd2 {[%clk 0:01:03.1]} 22...
Bf7 {[%clk 0:00:54.2]} 23. Nc4 {[%clk 0:00:53.5]} 23... g5 {[%clk 0:00:49]} 24.
Nh3 {[%clk 0:00:41.9]} 24... Nd5 {[%clk 0:00:49.9]} 25. Re1 {[%clk 0:00:38.8]}
25... Nc3 {[%clk 0:00:44.6]} 26. Rb2 {[%clk 0:00:35.5]} 26... Qf6 {[%clk
0:00:30.1]} 27. Bf1 {[%clk 0:00:21.2]} 27... Rxe1 {[%clk 0:00:26]} 28. Qxe1
{[%clk 0:00:20.3]} 28... a6 {[%clk 0:00:24.9]} 29. bxa6 {[%clk 0:00:14.4]} 29...
Rxa6 {[%clk 0:00:17.4]} 30. f4 {[%clk 0:00:10]} 30... b5 {[%clk 0:00:17.5]} 31.
fxg5 {[%clk 0:00:08.9]} 31... hxg5 {[%clk 0:00:17.4]} 32. Nd2 {[%clk 0:00:07.3]}
32... Rxc6 {[%clk 0:00:17.3]} 33. Nb3 {[%clk 0:00:04.6]} 33... Re6 {[%clk
0:00:17.6]} 34. Na5 {[%clk 0:00:04.5]} 34... Rxe1 {[%clk 0:00:16.9]} 0-1

[Event "*** Titled Tuesday Blitz"]
[Site "Chess.com"]
[Date "2021.02.02"]
[Round "3"]
[White "horripile"]
[Black "SanQui14"]
[Result "1-0"]
[WhiteElo "2705"]
[BlackElo "2433"]
[TimeControl "180+1"]
[EndTime "10:31:11 PST"]
[Termination "horripile won on time"]

1. e4 {[%clk 0:03:00.9]} 1... c5 {[%clk 0:02:52.9]} 2. Nf3 {[%clk 0:03:00.7]}
2... g6 {[%clk 0:02:52.9]} 3. d4 {[%clk 0:03:00]} 3... cxd4 {[%clk 0:02:53.3]}
4. Nxd4 {[%clk 0:02:59.8]} 4... Nc6 {[%clk 0:02:53.3]} 5. c4 {[%clk 0:03:00.1]}
5... Nf6 {[%clk 0:02:53.4]} 6. Nc3 {[%clk 0:02:58.4]} 6... Nxd4 {[%clk
0:02:53.9]} 7. Qxd4 {[%clk 0:02:58]} 7... d6 {[%clk 0:02:54.6]} 8. Bg5 {[%clk
0:02:56.7]} 8... Bg7 {[%clk 0:02:54.8]} 9. Qd2 {[%clk 0:02:56.7]} 9... O-O
{[%clk 0:02:54.2]} 10. Be2 {[%clk 0:02:56.9]} 10... Qa5 {[%clk 0:02:53.7]} 11.
O-O {[%clk 0:02:51.2]} 11... Be6 {[%clk 0:02:53.9]} 12. Rac1 {[%clk 0:02:48.6]}
12... Rfc8 {[%clk 0:02:53.5]} 13. b3 {[%clk 0:02:48.7]} 13... a6 {[%clk
0:02:51.7]} 14. f3 {[%clk 0:02:30.5]} 14... b5 {[%clk 0:02:30.8]} 15. Nd5 {[%clk
0:02:30.6]} 15... Qxd2 {[%clk 0:02:24.1]} 16. Bxd2 {[%clk 0:02:31.5]} 16... Bxd5
{[%clk 0:02:21.6]} 17. cxd5 {[%clk 0:02:29.4]} 17... Nd7 {[%clk 0:02:18.9]} 18.
Kf2 {[%clk 0:02:24.6]} 18... Bb2 {[%clk 0:01:59.6]} 19. Rxc8+ {[%clk 0:02:22.6]}
19... Rxc8 {[%clk 0:02:00.5]} 20. Bd3 {[%clk 0:02:23]} 20... Bd4+ {[%clk
0:01:34.9]} 21. Ke2 {[%clk 0:02:19.6]} 21... Ne5 {[%clk 0:01:22.7]} 22. Bb1
{[%clk 0:02:17.5]} 22... Bb2 {[%clk 0:01:10.7]} 23. f4 {[%clk 0:02:16]} 23...
Nd7 {[%clk 0:01:10.2]} 24. Rf3 {[%clk 0:02:06.5]} 24... Nc5 {[%clk 0:01:00.3]}
25. h4 {[%clk 0:01:55.9]} 25... Ra8 {[%clk 0:00:57.7]} 26. h5 {[%clk 0:01:49.3]}
26... a5 {[%clk 0:00:57.3]} 27. Be3 {[%clk 0:01:40.4]} 27... a4 {[%clk
0:00:38.7]} 28. b4 {[%clk 0:01:40.3]} 28... Na6 {[%clk 0:00:34.9]} 29. Bd2
{[%clk 0:01:40.2]} 29... Rc8 {[%clk 0:00:34.5]} 30. Kd1 {[%clk 0:01:33.2]} 30...
Rc4 {[%clk 0:00:26.8]} 31. a3 {[%clk 0:01:29.2]} 31... Rc8 {[%clk 0:00:17.2]}
32. h6 {[%clk 0:01:25.7]} 32... Rb8 {[%clk 0:00:12]} 33. Bc1 {[%clk 0:01:21.3]}
33... Bh8 {[%clk 0:00:11.9]} 34. Bd3 {[%clk 0:01:19.1]} 34... Nc7 {[%clk
0:00:11.8]} 35. Rf2 {[%clk 0:01:18.5]} 35... e6 {[%clk 0:00:07.5]} 36. Rc2
{[%clk 0:01:18.6]} 36... Rb7 {[%clk 0:00:07.7]} 37. Rxc7 {[%clk 0:01:08.1]}
37... Rxc7 {[%clk 0:00:07.7]} 38. Bxb5 {[%clk 0:01:05.8]} 38... exd5 {[%clk
0:00:07.9]} 39. exd5 {[%clk 0:01:02.5]} 39... Ra7 {[%clk 0:00:05.3]} 40. Be3
{[%clk 0:00:59.8]} 40... Ra8 {[%clk 0:00:04.3]} 41. Bc6 {[%clk 0:00:58.8]} 41...
Rb8 {[%clk 0:00:04.1]} 42. Bc1 {[%clk 0:00:57.3]} 42... Rc8 {[%clk 0:00:01.5]}
43. Bxa4 {[%clk 0:00:54.2]} 43... Kf8 {[%clk 0:00:02]} 44. Bc2 {[%clk
0:00:50.6]} 44... Bc3 {[%clk 0:00:01.6]} 45. b5 {[%clk 0:00:47.3]} 1-0

[Event "*** Titled Tuesday Blitz"]
[Site "Chess.com"]
[Date "2021.02.02"]
[Round "3"]
[White "DinaBelenkaya"]
[Black "chessasuke"]
[Result "0-1"]
[WhiteElo "2391"]
[BlackElo "2589"]
[TimeControl "180+1"]
[EndTime "10:31:11 PST"]
[Termination "chessasuke won by resignation"]

1. e4 {[%clk 0:03:00.9]} 1... c5 {[%clk 0:02:59.7]} 2. Nc3 {[%clk 0:02:59.2]}
2... a6 {[%clk 0:03:00.6]} 3. g3 {[%clk 0:02:58.1]} 3... b5 {[%clk 0:03:00.7]}
4. Bg2 {[%clk 0:02:58.1]} 4... Bb7 {[%clk 0:03:01.3]} 5. Nge2 {[%clk 0:02:57.7]}
5... e6 {[%clk 0:03:00.7]} 6. d4 {[%clk 0:02:56]} 6... cxd4 {[%clk 0:02:56.1]}
7. Nxd4 {[%clk 0:02:56.9]} 7... Nc6 {[%clk 0:02:55.4]} 8. O-O {[%clk 0:02:56.3]}
8... Nxd4 {[%clk 0:02:50.7]} 9. Qxd4 {[%clk 0:02:55.6]} 9... Ne7 {[%clk
0:02:51.6]} 10. Rd1 {[%clk 0:02:11.7]} 10... Nc6 {[%clk 0:02:51.1]} 11. Qd2
{[%clk 0:01:59.4]} 11... Qc7 {[%clk 0:02:48.9]} 12. a4 {[%clk 0:01:53.8]} 12...
bxa4 {[%clk 0:02:23.9]} 13. Nd5 {[%clk 0:01:47.8]} 13... Qd8 {[%clk 0:02:11.8]}
14. Rxa4 {[%clk 0:01:44.5]} 14... Ne5 {[%clk 0:01:51.4]} 15. Qc3 {[%clk
0:01:32]} 15... Bd6 {[%clk 0:01:29.5]} 16. f4 {[%clk 0:01:23.7]} 16... Ng6
{[%clk 0:01:13.2]} 17. Qxg7 {[%clk 0:00:48.1]} 17... exd5 {[%clk 0:01:08.3]} 18.
exd5 {[%clk 0:00:48.3]} 18... Qb6+ {[%clk 0:01:07.6]} 19. Kh1 {[%clk 0:00:45.6]}
19... O-O-O {[%clk 0:01:06.2]} 20. Qc3+ {[%clk 0:00:31]} 20... Kb8 {[%clk
0:01:06.3]} 21. Be3 {[%clk 0:00:30.8]} 21... Qb5 {[%clk 0:00:54.8]} 22. Rc4
{[%clk 0:00:29.5]} 22... Rhe8 {[%clk 0:00:49.8]} 23. b3 {[%clk 0:00:29.9]} 23...
Rc8 {[%clk 0:00:46.1]} 24. Qd4 {[%clk 0:00:30.1]} 24... Rxe3 {[%clk 0:00:45]}
25. Qxe3 {[%clk 0:00:30.3]} 25... Rxc4 {[%clk 0:00:45.1]} 26. bxc4 {[%clk
0:00:31.2]} 26... Qxc4 {[%clk 0:00:45.4]} 27. Qd3 {[%clk 0:00:31.3]} 27... Qxd3
{[%clk 0:00:44.6]} 28. Rxd3 {[%clk 0:00:31.2]} 28... a5 {[%clk 0:00:44.6]} 29.
h4 {[%clk 0:00:30.4]} 29... a4 {[%clk 0:00:44.4]} 30. Be4 {[%clk 0:00:30]} 30...
h5 {[%clk 0:00:42.2]} 31. f5 {[%clk 0:00:28.5]} 31... Ne5 {[%clk 0:00:41.9]} 32.
Re3 {[%clk 0:00:26.2]} 32... a3 {[%clk 0:00:41.7]} 33. Re1 {[%clk 0:00:24]}
33... Ng4 {[%clk 0:00:38.4]} 34. Kg2 {[%clk 0:00:23.1]} 34... Be5 {[%clk
0:00:38.7]} 35. c3 {[%clk 0:00:12.3]} 35... Bxc3 {[%clk 0:00:38.2]} 36. Re2
{[%clk 0:00:12.9]} 36... Bb2 {[%clk 0:00:35.2]} 37. d6 {[%clk 0:00:11.5]} 37...
Bxe4+ {[%clk 0:00:30.9]} 38. Rxe4 {[%clk 0:00:12.4]} 38... a2 {[%clk 0:00:30.5]}
39. Rb4+ {[%clk 0:00:13]} 39... Kc8 {[%clk 0:00:30.6]} 40. Rc4+ {[%clk 0:00:12]}
40... Kb7 {[%clk 0:00:30.3]} 41. Rb4+ {[%clk 0:00:12.1]} 41... Kc6 {[%clk
0:00:30.5]} 42. Rxb2 {[%clk 0:00:10.6]} 42... a1=Q {[%clk 0:00:29.7]} 43. Rc2+
{[%clk 0:00:11.5]} 43... Kxd6 {[%clk 0:00:29.6]} 44. Rd2+ {[%clk 0:00:11.5]}
44... Ke5 {[%clk 0:00:30]} 45. Re2+ {[%clk 0:00:11.8]} 45... Kf6 {[%clk
0:00:30.2]} 0-1

[Event "*** Titled Tuesday Blitz"]
[Site "Chess.com"]
[Date "2021.02.02"]
[Round "3"]
[White "BahadirOzen"]
[Black "verdest"]
[Result "1-0"]
[WhiteElo "2737"]
[BlackElo "2503"]
[TimeControl "180+1"]
[EndTime "10:31:12 PST"]
[Termination "BahadirOzen won by resignation"]

1. g3 {[%clk 0:03:00.9]} 1... Nf6 {[%clk 0:02:59.3]} 2. Bg2 {[%clk 0:03:01.3]}
2... d5 {[%clk 0:02:59.4]} 3. d3 {[%clk 0:03:01.4]} 3... c6 {[%clk 0:03:00.3]}
4. Nd2 {[%clk 0:03:00.2]} 4... e5 {[%clk 0:02:59.4]} 5. e4 {[%clk 0:02:59.5]}
5... Bd6 {[%clk 0:02:57.7]} 6. Ngf3 {[%clk 0:02:59.4]} 6... O-O {[%clk 0:02:56]}
7. O-O {[%clk 0:02:59.8]} 7... Re8 {[%clk 0:02:55.2]} 8. Re1 {[%clk 0:02:57.3]}
8... Nbd7 {[%clk 0:02:50.4]} 9. b3 {[%clk 0:02:57.1]} 9... a5 {[%clk 0:02:46.2]}
10. a3 {[%clk 0:02:46.2]} 10... d4 {[%clk 0:02:45.1]} 11. Bb2 {[%clk 0:02:37.8]}
11... Qc7 {[%clk 0:02:37.5]} 12. c3 {[%clk 0:02:35.1]} 12... dxc3 {[%clk
0:02:29.8]} 13. Bxc3 {[%clk 0:02:36]} 13... Nc5 {[%clk 0:02:29.9]} 14. Qc2
{[%clk 0:02:26.1]} 14... Bg4 {[%clk 0:02:15.6]} 15. h3 {[%clk 0:02:23.8]} 15...
Bxf3 {[%clk 0:02:13.5]} 16. Nxf3 {[%clk 0:02:23.6]} 16... a4 {[%clk 0:02:11.9]}
17. b4 {[%clk 0:02:22.6]} 17... Nb3 {[%clk 0:02:11.4]} 18. Rad1 {[%clk
0:02:17.8]} 18... Rad8 {[%clk 0:02:09.7]} 19. d4 {[%clk 0:02:15.6]} 19... exd4
{[%clk 0:02:03.6]} 20. Nxd4 {[%clk 0:02:14.9]} 20... Nxd4 {[%clk 0:02:02.6]} 21.
Bxd4 {[%clk 0:02:14.6]} 21... Be5 {[%clk 0:02:01.1]} 22. Be3 {[%clk 0:01:59.1]}
22... Bd6 {[%clk 0:01:13]} 23. f4 {[%clk 0:01:47.8]} 23... Bf8 {[%clk
0:01:10.5]} 24. e5 {[%clk 0:01:45.8]} 24... Nd7 {[%clk 0:00:54.5]} 25. Qxa4
{[%clk 0:01:43.8]} 25... Ra8 {[%clk 0:00:46.1]} 26. Qb3 {[%clk 0:01:43.3]} 26...
Nb6 {[%clk 0:00:44.9]} 27. Kh2 {[%clk 0:01:30.9]} 27... h5 {[%clk 0:00:42.9]}
28. h4 {[%clk 0:01:21.7]} 28... Nc8 {[%clk 0:00:39.5]} 29. Bh3 {[%clk
0:01:14.9]} 29... Ne7 {[%clk 0:00:25.7]} 30. Rd7 {[%clk 0:01:12.2]} 30... Qb8
{[%clk 0:00:25.8]} 31. e6 {[%clk 0:00:55.9]} 31... f5 {[%clk 0:00:14.1]} 32. Bd4
{[%clk 0:00:34.8]} 32... g6 {[%clk 0:00:06.7]} 33. Bg2 {[%clk 0:00:34.5]} 33...
Bg7 {[%clk 0:00:05.9]} 34. Bxg7 {[%clk 0:00:33.1]} 34... Kxg7 {[%clk 0:00:06.8]}
35. Qc3+ {[%clk 0:00:33.2]} 35... Kg8 {[%clk 0:00:06.3]} 36. Qf6 {[%clk
0:00:33.1]} 36... Rxa3 {[%clk 0:00:01.5]} 37. Rxe7 {[%clk 0:00:29.3]} 37... Rxe7
{[%clk 0:00:02]} 38. Qxe7 {[%clk 0:00:29.6]} 1-0

[Event "*** Titled Tuesday Blitz"]
[Site "Chess.com"]
[Date "2021.02.02"]
[Round "3"]
[White "GigaQuparadze"]
[Black "Ave_Mariia"]
[Result "1-0"]
[WhiteElo "2988"]
[BlackElo "2471"]
[TimeControl "180+1"]
[EndTime "10:31:12 PST"]
[Termination "GigaQuparadze won by resignation"]

1. e4 {[%clk 0:03:00.9]} 1... c5 {[%clk 0:03:00.3]} 2. Nf3 {[%clk 0:03:00.5]}
2... d6 {[%clk 0:03:00.7]} 3. d4 {[%clk 0:03:00.8]} 3... cxd4 {[%clk 0:03:01.6]}
4. Nxd4 {[%clk 0:03:01.7]} 4... Nf6 {[%clk 0:03:02]} 5. Nc3 {[%clk 0:03:02.2]}
5... g6 {[%clk 0:03:02.3]} 6. g3 {[%clk 0:03:01.1]} 6... Nc6 {[%clk 0:03:01.5]}
7. Bg2 {[%clk 0:03:00.2]} 7... Nxd4 {[%clk 0:03:00.9]} 8. Qxd4 {[%clk
0:03:01.1]} 8... Bg7 {[%clk 0:03:01.2]} 9. Qd3 {[%clk 0:03:01.4]} 9... O-O
{[%clk 0:02:55.2]} 10. O-O {[%clk 0:03:01.8]} 10... Be6 {[%clk 0:02:34.5]} 11.
Nd5 {[%clk 0:02:53.9]} 11... Nxd5 {[%clk 0:02:28]} 12. exd5 {[%clk 0:02:54.8]}
12... Bf5 {[%clk 0:02:28.4]} 13. Qe2 {[%clk 0:02:54.9]} 13... Rc8 {[%clk
0:02:25.3]} 14. c3 {[%clk 0:02:54.4]} 14... Re8 {[%clk 0:02:25.1]} 15. Re1
{[%clk 0:02:52.6]} 15... Qa5 {[%clk 0:02:07.3]} 16. Be3 {[%clk 0:02:37.3]} 16...
b5 {[%clk 0:02:05.6]} 17. a3 {[%clk 0:02:21.2]} 17... Qa4 {[%clk 0:02:05.1]} 18.
Rad1 {[%clk 0:02:20.7]} 18... Bg4 {[%clk 0:01:34.5]} 19. Bf3 {[%clk 0:02:20.1]}
19... Bxf3 {[%clk 0:01:34.5]} 20. Qxf3 {[%clk 0:02:21]} 20... Qb3 {[%clk
0:01:25.6]} 21. Qe2 {[%clk 0:02:20.6]} 21... a5 {[%clk 0:01:24.9]} 22. Bd4
{[%clk 0:02:20.8]} 22... b4 {[%clk 0:01:21.6]} 23. axb4 {[%clk 0:02:18.9]} 23...
axb4 {[%clk 0:01:21.1]} 24. Bxg7 {[%clk 0:02:18.4]} 24... Kxg7 {[%clk 0:01:21]}
25. cxb4 {[%clk 0:02:14.9]} 25... Qxb4 {[%clk 0:01:20.1]} 26. Rd2 {[%clk
0:02:15.1]} 26... e6 {[%clk 0:01:12.1]} 27. Red1 {[%clk 0:01:58]} 27... exd5
{[%clk 0:01:10.1]} 28. Qf3 {[%clk 0:01:57.6]} 28... Re1+ {[%clk 0:01:05.1]} 29.
Kg2 {[%clk 0:01:55]} 29... Rxd1 {[%clk 0:01:01.7]} 30. Qxd1 {[%clk 0:01:55.4]}
30... Rc5 {[%clk 0:00:59.2]} 31. b3 {[%clk 0:01:48.1]} 31... Qe4+ {[%clk
0:00:56.3]} 32. Kg1 {[%clk 0:01:40.7]} 32... Qe5 {[%clk 0:00:44.4]} 33. Rd3
{[%clk 0:01:38.5]} 33... Qb2 {[%clk 0:00:43.8]} 34. Kg2 {[%clk 0:01:37.2]} 34...
Rc1 {[%clk 0:00:43.4]} 35. Qf3 {[%clk 0:01:36.3]} 35... d4 {[%clk 0:00:37.4]}
36. Qf4 {[%clk 0:01:33.6]} 36... Qb1 {[%clk 0:00:32.3]} 37. Qxd4+ {[%clk
0:01:32]} 37... Kg8 {[%clk 0:00:32.7]} 38. Qxd6 {[%clk 0:01:28.7]} 38... Rg1+
{[%clk 0:00:32.7]} 39. Kf3 {[%clk 0:01:28.8]} 39... Rf1 {[%clk 0:00:20.7]} 40.
Qd8+ {[%clk 0:01:28]} 40... Kg7 {[%clk 0:00:20.9]} 41. Qd4+ {[%clk 0:01:28.4]}
41... Kg8 {[%clk 0:00:20.2]} 42. Qc3 {[%clk 0:01:27.2]} 42... Rd1 {[%clk
0:00:12.7]} 43. Rxd1 {[%clk 0:01:20.3]} 43... Qxd1+ {[%clk 0:00:13.6]} 44. Kg2
{[%clk 0:01:20.8]} 44... Qd5+ {[%clk 0:00:13.5]} 45. Qf3 {[%clk 0:01:20.9]}
45... Qb5 {[%clk 0:00:13.5]} 46. h4 {[%clk 0:01:20.9]} 46... h5 {[%clk
0:00:13.1]} 47. Qd1 {[%clk 0:01:19.8]} 47... Kg7 {[%clk 0:00:12.9]} 48. Qb1
{[%clk 0:01:18.6]} 48... Qb4 {[%clk 0:00:12.4]} 49. Qb2+ {[%clk 0:01:18.3]}
49... Kh7 {[%clk 0:00:12.2]} 50. Qc2 {[%clk 0:01:18.7]} 50... Qb7+ {[%clk
0:00:10.9]} 51. Kg1 {[%clk 0:01:18.5]} 51... Qb4 {[%clk 0:00:10.9]} 52. Qc4
{[%clk 0:01:18.3]} 52... Qe1+ {[%clk 0:00:11.1]} 53. Kg2 {[%clk 0:01:18.2]}
53... Kg7 {[%clk 0:00:11.5]} 54. b4 {[%clk 0:01:17.7]} 54... Qe7 {[%clk
0:00:07]} 55. b5 {[%clk 0:01:15.3]} 55... g5 {[%clk 0:00:05]} 56. hxg5 {[%clk
0:01:14.6]} 56... Qxg5 {[%clk 0:00:04.9]} 57. b6 {[%clk 0:01:14.1]} 1-0